bitfinex/quotes_SOLUSD_20251127
["timestamp","ask_amount","ask_price","bid_price","bid_amount"]
[1764284212163,0.69,140.89,140.86,7.78924747]
[1764284213369,0.69,140.89,140.86,7.09924747]
[1764284213769,0.69,140.89,140.86,10.77363793]
[1764284215673,0.69,140.89,140.86,11.46363793]
[1764284216748,0.69,140.89,140.86,10.13903901]
[1764284217270,0.887154,140.9,140.87,3.03979154]
[1764284217453,3.14,140.89,140.88,2.34979154]
[1764284217643,3.14,140.89,140.87,0.69]
[1764284219361,3.14,140.89,140.88,7.09823963]
[1764284219763,0.69,140.9,140.88,7.09823963]
[1764284219968,3.14,140.89,140.88,7.09823963]
[1764284220375,0.8870281,140.92,140.88,7.09823963]
[1764284220605,0.8870281,140.92,140.89,0.69]
[1764284220606,3.14,140.91,140.89,0.69]
[1764284221080,3.83,140.91,140.89,0.69]
[1764284221576,3.83,140.91,140.85,24.84913027]
[1764284221879,3.83,140.91,140.89,0.69]
[1764284222554,3.83,140.91,140.85,24.84913027]
[1764284222754,3.83,140.91,140.88,0.69]
[1764284222955,3.14,140.91,140.88,0.69]
[1764284223688,3.14,140.91,140.89,7.09773582]
[1764284223859,3.83,140.91,140.89,7.09773582]
[1764284224055,3.83,140.91,140.89,7.78773582]
[1764284224863,3.83,140.91,140.89,7.09773582]
[1764284225753,3.83,140.91,140.89,0.69]
[1764284227183,3.83,140.91,140.89,7.09773582]
[1764284230359,0.65,140.9,140.87,17.74646819]
[1764284230568,0.65,140.9,140.87,20.09625973]
[1764284231172,0.65,140.9,140.87,17.74646819]
[1764284231576,0.65,140.9,140.87,24.84521171]
[1764284232386,3.14,140.91,140.87,24.84521171]
[1764284232387,3.8,140.91,140.88,0.72]
[1764284232564,0.66,140.9,140.87,27.91500325]
[1764284232763,0.66,140.9,140.88,0.72]
[1764284232987,0.66,140.9,140.87,27.91500325]
[1764284236090,0.66,140.9,140.87,27.19500325]
[1764284236279,3.8,140.91,140.89,7.09773582]
[1764284236469,8.52471327,140.91,140.89,7.09773582]
[1764284236791,0.66,140.9,140.89,7.09773582]
[1764284237083,3.8,140.9,140.89,7.09773582]
[1764284241575,3.14,140.9,140.89,7.09773582]
[1764284241775,3.14,140.9,140.89,7.81773582]
[1764284241982,3.14,140.9,140.89,10.16752736]
[1764284243992,3.8,140.9,140.87,18.46646819]
[1764284244195,0.66,140.89,140.86,3.06979154]
[1764284244396,0.66,140.89,140.87,0.72]
[1764284244706,3.8,140.9,140.87,7.81874352]
[1764284244881,8.52655435,140.9,140.87,7.81874352]
[1764284245080,3.8,140.9,140.87,7.81874352]
[1764284245493,8.52679255,140.9,140.87,7.81874352]
[1764284245813,3.8,140.9,140.87,7.81874352]
[1764284246308,8.52679255,140.9,140.87,7.81874352]
[1764284246487,3.8,140.9,140.87,10.16853506]
[1764284247095,8.52730131,140.9,140.87,10.16853506]
[1764284247304,3.8,140.9,140.87,10.16853506]
[1764284247786,7.86834471,140.9,140.87,10.16853506]
[1764284247971,0.66,140.89,140.87,10.16853506]
[1764284248174,3.14,140.9,140.87,10.16853506]
[1764284248388,8.52833124,140.9,140.87,7.81874352]
[1764284248699,0.66,140.89,140.87,7.81874352]
[1764284249079,8.52849154,140.9,140.87,7.81874352]
[1764284249278,3.8,140.9,140.87,7.81874352]
[1764284249696,8.5286784,140.9,140.87,7.81874352]
[1764284249897,3.8,140.9,140.87,7.81874352]
[1764284250387,8.5286784,140.9,140.87,7.81874352]
[1764284250587,3.8,140.9,140.87,7.81874352]
[1764284251082,8.52886421,140.9,140.87,7.81874352]
[1764284251286,3.8,140.9,140.87,7.81874352]
[1764284251680,8.52907282,140.9,140.87,7.81874352]
[1764284251880,3.8,140.9,140.87,7.09874352]
[1764284252074,3.8,140.9,140.88,7.09790536]
[1764284252274,8.52733331,140.9,140.88,7.09790536]
[1764284252496,3.8,140.9,140.88,7.09790536]
[1764284252995,8.52699452,140.9,140.88,7.09790536]
[1764284253188,3.8,140.9,140.88,7.09790536]
[1764284253387,0.66,140.89,140.88,7.09790536]
[1764284254084,3.8,140.9,140.88,7.81790536]
[1764284254289,8.52653777,140.9,140.88,7.09790536]
[1764284254500,3.8,140.9,140.88,7.09790536]
[1764284254879,8.52660241,140.9,140.88,7.09790536]
[1764284255081,3.8,140.9,140.88,7.09790536]
[1764284255513,8.52665709,140.9,140.88,7.09790536]
[1764284255803,3.8,140.9,140.88,7.09790536]
[1764284256189,8.52593168,140.9,140.88,7.09790536]
[1764284256502,3.8,140.9,140.88,7.09790536]
[1764284256889,8.52598828,140.9,140.88,7.09790536]
[1764284257094,3.8,140.9,140.88,7.09790536]
[1764284257289,0.66,140.9,140.88,7.09790536]
[1764284257500,3.14,140.89,140.88,7.09790536]
[1764284260484,3.14,140.89,140.88,7.81790536]
[1764284261201,7.86715521,140.89,140.88,7.81790536]
[1764284261585,3.14,140.89,140.88,10.1676969]
[1764284261881,7.86715521,140.89,140.88,10.1676969]
[1764284262086,3.14,140.89,140.88,10.1676969]
[1764284262281,7.86715521,140.89,140.88,7.81790536]
[1764284262688,3.14,140.89,140.88,7.81790536]
[1764284262986,7.86715521,140.89,140.88,7.81790536]
[1764284264105,4.72715521,140.89,140.88,7.81790536]
[1764284264286,7.86715521,140.89,140.88,7.81790536]
[1764284264481,7.86715521,140.89,140.88,7.09790536]
[1764284265210,7.86715521,140.89,140.88,7.81790536]
[1764284269818,8.58715521,140.89,140.88,7.09790536]
[1764284269990,3.86,140.89,140.88,7.09790536]
[1764284270707,8.58715521,140.89,140.88,7.09790536]
[1764284271105,3.86,140.89,140.88,7.09790536]
[1764284271914,7.86715521,140.89,140.88,7.09790536]
[1764284272091,3.14,140.89,140.88,7.09790536]
[1764284272291,7.86715521,140.89,140.88,7.81790536]
[1764284275294,3.14,140.89,140.88,7.81790536]
[1764284279423,3.14,140.89,140.87,7.09874352]
[1764284279624,3.14,140.89,140.87,7.81874352]
[1764284279801,3.86,140.89,140.87,7.81874352]
[1764284280826,3.14,140.89,140.87,7.81874352]
[1764284281834,8.59166404,140.89,140.87,7.81874352]
[1764284282136,3.86,140.89,140.87,7.81874352]
[1764284283006,7.87195077,140.89,140.87,7.81874352]
[1764284283600,3.86,140.89,140.87,7.81874352]
[1764284284393,8.59127922,140.89,140.87,7.81874352]
[1764284284695,3.86,140.89,140.87,7.81874352]
[1764284285492,8.59178806,140.89,140.87,7.81874352]
[1764284285719,3.86,140.89,140.87,7.81874352]
[1764284287519,8.59225112,140.89,140.87,7.81874352]
[1764284287697,3.86,140.89,140.87,7.81874352]
[1764284288514,8.59241262,140.89,140.87,7.81874352]
[1764284288712,3.86,140.89,140.87,7.81874352]
[1764284291016,8.59196104,140.89,140.87,7.81874352]
[1764284291216,3.86,140.89,140.87,7.81874352]
[1764284292021,8.59067562,140.89,140.87,7.81874352]
[1764284292230,3.14,140.89,140.87,7.81874352]
[1764284293928,3.85,140.89,140.87,15.80143606]
[1764284295706,8.57699951,140.89,140.87,15.80143606]
[1764284296029,3.85,140.89,140.87,15.80143606]
[1764284296528,8.57705491,140.89,140.87,15.80143606]
[1764284296723,3.85,140.89,140.87,15.80143606]
[1764284299122,0.71,140.88,140.87,15.08143606]
[1764284301442,0.71,140.88,140.86,7.09917628]
[1764284301652,4.72597743,140.87,140.85,7.09953698]
[1764284301969,0.71,140.86,140.85,7.09953698]
[1764284302243,7.52090133,140.86,140.85,7.09953698]
[1764284302416,7.52090133,140.86,140.83,24.85265923]
[1764284302621,3.85,140.85,140.83,24.85265923]
[1764284303325,3.85,140.85,140.83,35.62133147]
[1764284303922,3.85,140.85,140.83,40.0122328]
[1764284307617,3.85,140.85,140.84,3.67090133]
[1764284308026,3.14,140.85,140.84,3.67090133]
[1764284308516,3.14,140.85,140.84,10.77115693]
[1764284309222,3.85,140.85,140.84,10.77115693]
[1764284310046,3.14,140.85,140.84,11.49115693]
[1764284310343,3.14,140.86,140.84,29.24179595]
[1764284310545,3.14,140.86,140.85,4.39090133]
[1764284311843,3.14,140.86,140.85,11.49065283]
[1764284313036,7.98442839,140.88,140.85,29.2400316]
[1764284313247,0.8870281,140.92,140.87,3.67090133]
[1764284313450,15.83896289,140.91,140.89,3.67090133]
[1764284313652,3.14,140.91,140.89,3.67090133]
[1764284313945,8.80994492,140.94,140.9,4.39090133]
[1764284313946,20.55397548,140.93,140.9,4.39090133]
[1764284314134,3.14,140.93,140.92,3.67090133]
[1764284314533,3.14,140.93,140.92,4.39090133]
[1764284314931,4.71484563,140.94,140.92,3.67090133]
[1764284315130,4.71484563,140.94,140.92,10.76712613]
[1764284315131,3.14,140.93,140.92,10.76712613]
[1764284317736,3.14,140.93,140.92,7.0962248]
[1764284320954,3.14,140.93,140.92,7.7862248]
[1764284323066,3.8,140.93,140.91,7.09653831]
[1764284323274,0.66,140.92,140.91,7.09653831]
[1764284324355,6.94,140.93,140.91,7.09653831]
[1764284324931,3.8,140.93,140.91,7.09653831]
[1764284326342,3.14,140.93,140.92,3.67090133]
[1764284326751,3.14,140.93,140.92,4.36090133]
[1764284327446,3.14,140.93,140.92,3.67090133]
[1764284327850,3.14,140.93,140.91,10.92653831]
[1764284328173,3.14,140.93,140.92,0.69]
[1764284328343,3.14,140.93,140.92,11.45712613]
[1764284328845,3.14,140.93,140.92,29.19947925]
[1764284331054,3.14,140.93,140.92,25.52857792]
[1764284331255,3.14,140.93,140.92,29.19947925]
[1764284334747,3.12,140.94,140.92,46.94004127]
[1764284334953,3.12,140.94,140.93,4.36090133]
[1764284335259,3.32,140.95,140.93,20.9548184]
[1764284335467,0.66,140.94,140.93,20.9548184]
[1764284336055,0.66,140.94,140.92,28.50768815]
[1764284336270,0.66,140.94,140.92,29.19768815]
[1764284337250,23.6148184,140.95,140.92,29.19768815]
[1764284337456,24.2748184,140.95,140.92,29.19768815]
[1764284338085,23.6148184,140.95,140.92,29.19768815]
[1764284338283,0.66,140.94,140.92,29.19768815]
[1764284338585,0.66,140.94,140.92,27.87474442]
[1764284339487,0.66,140.94,140.92,27.18474442]
[1764284341597,0.66,140.94,140.92,27.87474442]
[1764284341783,0.66,140.94,140.92,27.18474442]
[1764284342176,0.66,140.94,140.92,27.87474442]
[1764284343470,0.66,140.94,140.92,27.18474442]
[1764284343790,23.6148184,140.95,140.92,27.18474442]
[1764284343980,24.2748184,140.95,140.92,27.87474442]
[1764284344182,23.6148184,140.95,140.92,27.87474442]
[1764284344371,0.66,140.94,140.92,27.87474442]
[1764284344797,23.6148184,140.95,140.93,3.0379576]
[1764284345096,0.2,140.95,140.94,3.0379576]
[1764284345303,1e-08,140.95,140.94,3.0379576]
[1764284345592,0.2,140.96,140.94,3.0379576]
[1764284345593,1e-08,140.96,140.95,16.998864]
[1764284345769,1e-08,140.98,140.96,16.308864]
[1764284345974,0.2,141.02,140.98,16.308864]
[1764284346175,3.32,141.02,141.01,2.3479576]
[1764284346371,3.32,141.02,141.01,9.43965322]
[1764284346575,3.32,141.02,141.01,10.12965322]
[1764284347171,0.2,141.02,141.01,10.12965322]
[1764284347378,0.2,141.04,141.01,27.85889228]
[1764284347573,0.2,141.04,141.03,2.3479576]
[1764284347792,0.2,141.04,141.02,0.69]
[1764284347970,0.2,141.04,141.03,2.3479576]
[1764284348172,0.2,141.04,141.03,5.4679576]
[1764284348380,0.2,141.04,141.03,6.1579576]
[1764284348997,0.2,141.04,141.03,13.24864752]
[1764284353500,0.2,141.04,141.03,10.12864752]
[1764284355977,0.9,141.04,141.02,7.09103344]
[1764284356405,0.9,141.04,141.02,9.43899104]
[1764284356595,0.2,141.04,141.02,9.43899104]
[1764284356910,0.2,141.04,141.03,2.3479576]
[1764284357298,0.2,141.04,141.03,9.43864752]
[1764284360005,0.9,141.04,141.03,9.43864752]
[1764284362493,0.9,141.04,141.03,7.09068992]
[1764284362809,0.9,141.04,140.97,3.12]
[1764284362810,26.64702145,141.04,140.97,9.44166548]
[1764284362987,26.64702145,141.04,140.94,0.69]
[1764284362988,2.3479576,141.02,140.95,7.09471443]
[1764284363183,9.50994492,141.03,140.94,9.44309014]
[1764284363184,11.15790252,141.0,140.94,9.44309014]
[1764284363410,8.80994492,140.98,140.94,2.3479576]
[1764284363711,8.80994492,140.98,140.93,7.09570401]
[1764284363910,0.7,140.97,140.92,7.09616977]
[1764284364110,3.12,140.96,140.92,7.09616977]
[1764284364500,0.7,140.95,140.92,7.09616977]
[1764284365188,0.7,140.95,140.92,9.44412737]
[1764284367033,0.7,140.95,140.9,16.308864]
[1764284367314,0.7,140.95,140.9,18.6568216]
[1764284367611,3.0479576,140.95,140.9,16.308864]
[1764284367804,0.7,140.94,140.9,18.6568216]
[1764284368202,0.7,140.94,140.91,9.44424229]
[1764284371039,0.7,140.97,140.93,2.3479576]
[1764284371232,3.12,140.98,140.96,2.3479576]
[1764284371434,3.12,140.98,140.97,2.3479576]
[1764284372245,3.82,140.98,140.97,2.3479576]
[1764284372449,16.308864,141.01,140.98,7.0932047]
[1764284372632,3.12,141.0,140.98,7.0932047]
[1764284373042,3.82,141.0,140.98,7.0932047]
[1764284373349,0.7,140.99,140.98,7.0932047]
[1764284375652,0.7,140.99,140.97,9.44154759]
[1764284386775,0.7,140.99,140.93,16.308864]
[1764284386939,0.7,140.99,140.82,75.1]
[1764284386940,2.3479576,140.97,140.89,0.66]
[1764284387139,3.12,140.96,140.92,2.3479576]
[1764284387362,3.12,140.96,140.91,16.308864]
[1764284387363,6.1779576,140.96,140.91,2.3479576]
[1764284387556,0.71,140.95,140.91,2.3479576]
[1764284388142,0.71,140.95,140.92,2.3479576]
[1764284388761,0.71,140.95,140.93,7.09572128]
[1764284389060,3.12,140.95,140.94,2.3479576]
[1764284389275,3.12,140.95,140.94,3.0079576]
[1764284389480,3.12,140.96,140.94,3.0079576]
[1764284389763,3.12,140.97,140.95,3.0079576]
[1764284390845,3.12,140.97,140.96,7.09421112]
[1764284391872,3.83,140.97,140.95,9.44255608]
[1764284392568,3.12,140.97,140.95,7.09459848]
[1764284392771,0.71,140.96,140.92,9.44398452]
[1764284393552,0.71,140.96,140.92,10.10398452]
[1764284394854,0.71,140.96,140.94,7.09521782]
[1764284399767,0.71,140.96,140.92,7.09572622]
[1764284400358,0.71,140.96,140.92,2.3479576]
[1764284400554,0.71,140.96,140.91,28.50739294]
[1764284400985,0.71,140.96,140.92,3.66886452]
[1764284401490,0.71,140.96,140.91,7.0967074]
[1764284401491,11.47318673,140.96,140.91,7.0967074]
[1764284401798,0.8868393,140.95,140.91,7.0967074]
[1764284402099,1.5968393,140.95,140.91,7.0967074]
[1764284402295,3.12,140.95,140.92,0.66]
[1764284402493,3.12,140.95,140.93,3.66886452]
[1764284402783,3.83,140.95,140.92,0.66]
[1764284402983,3.83,140.95,140.92,4.32886452]
[1764284403166,3.12,140.95,140.91,24.83852842]
[1764284403366,3.83,140.95,140.93,3.66886452]
[1764284404087,3.83,140.95,140.94,7.09521782]
[1764284406374,3.83,140.95,140.92,7.09619534]
[1764284406594,0.71,140.94,140.92,7.09619534]
[1764284407093,0.71,140.94,140.91,22.07068554]
[1764284407094,0.71,140.94,140.91,10.76552919]
[1764284407290,0.71,140.94,140.91,7.09666467]
[1764284408187,5.42285779,140.94,140.91,7.09666467]
[1764284408401,5.42285779,140.94,140.9,7.09723207]
[1764284408608,0.71,140.93,140.9,7.09723207]
[1764284408918,4.37886452,140.93,140.88,10.76700857]
[1764284409119,13.18880944,140.92,140.87,7.19855725]
[1764284409287,6.78886452,140.91,140.87,0.1]
[1764284409490,12.2096735,140.91,140.87,0.1]
[1764284409814,12.47880944,140.89,140.87,0.1]
[1764284410001,3.66886452,140.88,140.87,0.1]
[1764284410201,13.18880944,140.88,140.87,0.1]
[1764284410402,20.28704907,140.88,140.87,0.1]
[1764284411287,16.61818455,140.88,140.87,0.1]
[1764284411499,3.12,140.88,140.87,7.19874352]
[1764284411697,3.12,140.88,140.87,7.88874352]
[1764284411889,0.68,140.94,140.87,11.55760804]
[1764284412090,3.12,140.91,140.88,0.69]
[1764284412298,3.12,140.91,140.9,3.66886452]
[1764284412491,3.12,140.91,140.9,10.76609659]
[1764284412708,3.12,140.91,140.9,11.42609659]
[1764284413021,3.84,140.91,140.89,7.09761088]
[1764284413190,3.12,140.91,140.89,7.09761088]
[1764284413801,3.84,140.91,140.89,7.09761088]
[1764284413992,3.84,140.91,140.89,10.7664754]
[1764284414908,3.84,140.91,140.89,7.09761088]
[1764284416429,3.84,140.91,140.87,17.84619195]
[1764284416430,17.028864,140.9,140.87,0.1]
[1764284416610,0.72,140.89,140.87,0.1]
[1764284418401,3.12,140.88,140.87,0.76]
[1764284418597,3.12,140.88,140.87,0.1]
[1764284420193,3.12,140.88,140.87,11.52760804]
[1764284420417,3.12,140.89,140.87,11.52760804]
[1764284420617,3.12,140.89,140.88,4.32886452]
[1764284420933,0.72,140.96,140.88,4.32886452]
[1764284421233,3.12,140.95,140.93,3.66886452]
[1764284421536,3.12,140.95,140.9,16.308864]
[1764284421537,3.12,140.95,140.91,3.66886452]
[1764284421710,4.7268393,140.95,140.91,10.76559292]
[1764284421908,4.7268393,140.95,140.91,7.7567284]
[1764284422113,4.7268393,140.95,140.91,11.42559292]
[1764284423128,4.7268393,140.95,140.91,29.16741394]
[1764284423840,3.84,140.95,140.91,29.16741394]
[1764284424015,3.84,140.95,140.92,3.66886452]
[1764284424519,3.84,140.95,140.92,4.32886452]
[1764284425841,3.84,140.95,140.92,0.66]
[1764284426043,3.84,140.95,140.92,7.7561693]
[1764284427438,1.60690222,140.94,140.91,10.76555608]
[1764284427738,1.60690222,140.94,140.91,11.42555608]
[1764284428729,0.88690222,140.94,140.91,11.42555608]
[1764284429038,0.88690222,140.94,140.91,10.76555608]
[1764284429241,0.88690222,140.94,140.92,7.75614084]
[1764284429627,3.12,140.95,140.93,3.66886452]
[1764284431044,3.12,140.95,140.94,7.09521782]
[1764284432039,3.12,140.95,140.92,22.06942654]
[1764284432040,3.12,140.95,140.93,7.09572128]
[1764284432241,3.12,140.95,140.93,11.4245858]
[1764284437962,3.84,140.95,140.93,10.7645858]
[1764284438139,3.12,140.95,140.93,11.4245858]
[1764284438546,3.12,140.95,140.93,10.7645858]
[1764284438751,3.12,140.95,140.94,4.32886452]
[1764284439062,0.88665058,140.98,140.94,4.32886452]
[1764284439358,7.82566443,140.97,140.96,3.66886452]
[1764284439537,3.12,140.97,140.95,0.66]
[1764284439738,3.12,140.97,140.96,3.66886452]
[1764284439959,3.12,140.97,140.95,0.66]
[1764284440137,3.12,140.97,140.96,3.66886452]
[1764284440562,3.12,140.97,140.96,10.76307564]
[1764284440751,3.12,140.97,140.96,11.41307564]
[1764284442648,20.11488801,141.01,140.96,29.14860344]
[1764284442847,3.12,141.0,140.99,3.66886452]
[1764284444846,3.12,141.0,140.99,10.76156613]
[1764284445154,3.12,141.0,140.99,11.41156613]
[1764284446483,3.12,141.0,140.99,29.14332015]
[1764284449376,0.2,141.04,140.99,29.14332015]
[1764284449574,3.12,141.03,141.02,3.66886452]
[1764284450074,3.12,141.03,141.02,4.31886452]
[1764284451374,3.12,141.03,141.02,11.41005725]
[1764284452081,0.2,141.04,141.02,11.41005725]
[1764284452285,0.2,141.04,141.03,4.31886452]
[1764284453592,0.2,141.04,141.03,7.74068992]
[1764284453794,0.2,141.04,141.03,11.40955444]
[1764284456970,1e-08,141.04,141.03,11.40955444]
[1764284458883,1e-08,141.04,141.03,27.71841844]
[1764284460495,1e-08,141.04,141.03,36.52836336]
[1764284460791,0.2,141.08,141.06,16.308864]
[1764284461000,0.2,141.08,141.07,20.62772852]
[1764284461899,0.2,141.08,141.07,27.71640789]
[1764284462600,1e-08,141.08,141.07,26.38982768]
[1764284464893,1e-08,141.08,141.07,25.73982768]
[1764284464894,0.67000001,141.08,141.07,25.73982768]
[1764284465089,1e-08,141.08,141.07,25.73982768]
[1764284465398,1e-08,141.08,141.07,7.08867937]
[1764284465399,0.67000001,141.08,141.07,7.08867937]
[1764284466185,0.67000001,141.08,141.06,7.0891819]
[1764284467208,0.67000001,141.08,141.06,9.43146621]
[1764284467910,0.67000001,141.08,141.06,7.0891819]
[1764284468107,0.67000001,141.08,141.06,9.43146621]
[1764284468305,0.67000001,141.08,141.05,27.15504951]
[1764284469009,0.67000001,141.08,141.05,24.8127652]
[1764284469312,0.67000001,141.08,141.05,7.0896845]
[1764284472803,0.67000001,141.08,141.05,9.43196881]
[1764284474096,0.67000001,141.08,141.04,9.43247149]
[1764284474297,0.67000001,141.08,141.05,2.34228431]
[1764284475514,0.67000001,141.08,141.04,25.53565513]
[1764284475815,0.67000001,141.08,141.06,7.0891819]
[1764284477119,3.79000001,141.08,141.06,7.0891819]
[1764284477416,0.66,141.07,141.06,7.0891819]
[1764284478293,3.12000001,141.08,141.06,7.0891819]
[1764284478621,3.12000001,141.08,141.06,10.15146621]
[1764284478993,1e-08,141.08,141.06,10.15146621]
[1764284479405,0.66000001,141.08,141.06,9.43146621]
[1764284479805,1e-08,141.08,141.06,10.15146621]
[1764284480008,1e-08,141.08,141.07,2.34228431]
[1764284480396,1e-08,141.08,141.07,9.43096368]
[1764284480797,0.66000001,141.08,141.07,7.08867937]
[1764284481097,1e-08,141.08,141.07,7.08867937]
[1764284482307,0.66000001,141.08,141.07,7.08867937]
[1764284485999,0.66000001,141.08,141.06,7.08909191]
[1764284486206,0.66000001,141.08,141.05,7.08952066]
[1764284489212,0.66000001,141.08,141.05,27.87601624]
[1764284489924,1e-08,141.08,141.07,16.308864]
[1764284490121,1e-08,141.08,141.07,18.65114831]
[1764284490312,1e-08,141.08,141.07,19.37114831]
[1764284491522,1e-08,141.08,141.07,26.45982768]
[1764284495806,0.66,141.12,141.07,26.45982768]
[1764284496013,0.56000001,141.12,141.1,2.34228431]
[1764284497620,0.56000001,141.12,141.11,7.08666997]
[1764284497819,3.32,141.14,141.11,24.8033449]
[1764284498142,0.66,141.13,141.11,24.8033449]
[1764284498644,0.66,141.13,141.11,7.08666997]
[1764284500339,0.66,141.13,141.11,9.42895428]
[1764284501528,0.92,141.14,141.11,27.81562921]
[1764284501728,0.92,141.14,141.12,2.34228431]
[1764284502540,0.92,141.14,141.13,7.08566569]
[1764284504530,0.2,141.14,141.13,2.34228431]
[1764284504834,0.2,141.14,141.13,3.01228431]
[1764284505964,0.2,141.14,141.13,2.34228431]
[1764284506132,0.2,141.14,141.13,3.01228431]
[1764284506733,0.2,141.14,141.13,9.42795]
[1764284506947,0.2,141.14,141.13,10.09795]
[1764284508844,0.2,141.16,141.13,27.81211424]
[1764284509048,0.2,141.16,141.15,2.34228431]
[1764284509547,0.2,141.16,141.15,3.01228431]
[1764284510365,0.2,141.16,141.15,2.34228431]
[1764284510663,0.92,141.16,141.14,2.34228431]
[1764284510858,0.92,141.16,141.13,27.14211424]
[1764284511068,0.72,141.15,141.13,7.08566569]
[1764284511768,3.06228431,141.15,141.12,7.08598775]
[1764284512066,3.06228431,141.15,141.1,9.42945652]
[1764284512241,0.72,141.14,141.1,9.42945652]
[1764284512444,0.72,141.14,141.1,27.14738706]
[1764284512842,3.12,141.13,141.1,27.14738706]
[1764284513261,0.72,141.12,141.1,27.14738706]
[1764284513461,0.72,141.12,141.11,9.42895428]
[1764284514379,3.12,141.15,141.11,27.81562921]
[1764284514663,0.2,141.16,141.14,2.34228431]
[1764284514847,0.2,141.16,141.12,26.34800124]
[1764284515038,0.2,141.16,141.13,0.67]
[1764284515443,0.2,141.16,141.14,7.08516366]
[1764284515746,0.92,141.16,141.14,7.08516366]
[1764284516265,0.2,141.16,141.14,7.08516366]
[1764284517049,0.2,141.16,141.14,7.75516366]
[1764284517840,0.2,141.16,141.15,0.67]
[1764284518363,0.2,141.16,141.14,7.75516366]
[1764284520167,0.2,141.16,141.15,0.67]
[1764284521664,0.2,141.16,141.15,16.978864]
[1764284522168,0.2,141.16,141.15,24.0635257]
[1764284522863,1e-08,141.16,141.15,26.40581001]
[1764284523277,1e-08,141.17,141.15,26.40581001]
[1764284523479,1e-08,141.17,141.16,3.01228431]
[1764284523875,0.2,141.19,141.16,3.01228431]
[1764284524075,0.2,141.19,141.17,7.083658]
[1764284524376,0.2,141.19,141.18,2.34228431]
[1764284524561,0.2,141.19,141.18,4.32447494]
[1764284524761,0.2,141.19,141.18,3.65447494]
[1764284526461,0.2,141.19,141.18,10.73763119]
[1764284529781,0.2,141.19,141.18,10.45673329]
[1764284533584,0.9,141.19,141.18,7.08315625]
[1764284538387,0.9,141.19,141.18,10.45673329]
[1764284538591,0.2,141.19,141.18,10.45673329]
[1764284538890,1e-08,141.19,141.18,10.45673329]
[1764284541075,1e-08,141.19,141.18,11.14673329]
[1764284543396,1e-08,141.2,141.19,0.69]
[1764284543600,1e-08,141.2,141.19,4.06357704]
[1764284544498,1e-08,141.2,141.19,11.14623161]
[1764284544877,1e-08,141.2,141.19,10.45623161]
[1764284545377,1e-08,141.2,141.19,11.14623161]
[1764284547326,1e-08,141.2,141.19,7.77265457]
[1764284547597,1e-08,141.2,141.19,11.14623161]
[1764284550583,1e-08,141.2,141.19,27.45509561]
[1764284554522,1e-08,141.2,141.19,24.08151857]
[1764284554695,0.66000001,141.2,141.19,26.76509561]
[1764284555312,1e-08,141.2,141.19,26.76509561]
[1764284566144,4.71669234,141.25,141.2,0.66]
[1764284566431,4.71669234,141.26,141.2,0.66]
[1764284566623,4.71669234,141.25,141.24,3.37357704]
[1764284566822,4.71669234,141.26,141.24,3.37357704]
[1764284567020,0.88483046,141.27,141.25,3.37357704]
[1764284567233,4.71788244,141.26,141.25,3.37357704]
[1764284568018,5.42788244,141.26,141.25,10.45322305]
[1764284569646,5.42788244,141.26,141.24,3.37357704]
[1764284570625,5.42788244,141.26,141.25,7.07964601]
[1764284571017,5.42788244,141.26,141.25,10.45322305]
[1764284572623,5.42788244,141.26,141.24,10.4537243]
[1764284573024,4.71788244,141.26,141.25,3.37357704]
[1764284573245,5.42788244,141.26,141.25,3.37357704]
[1764284574350,5.42788244,141.26,141.25,10.45322305]
[1764284577362,4.71788244,141.26,141.25,10.45322305]
[1764284579554,4.71788244,141.27,141.25,11.11322305]
[1764284579744,7.83788244,141.28,141.26,4.03357704]
[1764284579947,7.83788244,141.28,141.27,3.37357704]
[1764284580644,7.83788244,141.28,141.27,4.03357704]
[1764284580837,0.2,141.29,141.27,4.03357704]